bitfinex/quotes_BTCUSD_20241018
["timestamp","ask_amount","ask_price","bid_price","bid_amount"]
[1729233060422,0.000828,68254.0,68251.0,0.51661515]
[1729233060642,0.000828,68254.0,68253.0,0.246513]
[1729233060852,0.000828,68254.0,68253.0,0.39547215]
[1729233061111,0.006828,68254.0,68253.0,0.39547215]
[1729233061536,0.000828,68254.0,68253.0,0.39347215]
[1729233061772,0.002828,68254.0,68253.0,0.39347215]
[1729233062188,0.001828,68254.0,68253.0,0.39347215]
[1729233062431,0.001828,68254.0,68253.0,0.244513]
[1729233063605,0.002828,68254.0,68253.0,0.247513]
[1729233063819,0.002828,68254.0,68253.0,0.39940223]
[1729233064043,0.001828,68254.0,68253.0,0.39547215]
[1729233064268,0.000828,68254.0,68253.0,0.39847215]
[1729233064485,0.001828,68254.0,68253.0,0.40147215]
[1729233064914,0.002828,68254.0,68253.0,0.40847215]
[1729233065131,0.000828,68254.0,68253.0,0.40547215]
[1729233065568,0.21942817,68265.0,68264.0,0.22339]
[1729233065809,0.21942817,68265.0,68264.0,0.71791651]
[1729233066030,0.21942817,68265.0,68260.0,0.16516736]
[1729233066031,0.21942817,68265.0,68263.0,0.16516736]
[1729233066253,0.19034964,68271.0,68265.0,0.146487]
[1729233066491,0.19034964,68271.0,68263.0,0.31165836]
[1729233066492,0.01097408,68270.0,68263.0,0.31165836]
[1729233066739,0.292953,68271.0,68259.0,0.16516736]
[1729233066740,0.05484772,68269.0,68259.0,0.16516736]
[1729233066960,0.04387364,68267.0,68253.0,0.146512]
[1729233067173,0.292995,68261.0,68254.0,0.146511]
[1729233067393,0.01097408,68260.0,68254.0,0.31167636]
[1729233067624,0.01097408,68259.0,68256.0,0.146506]
[1729233067850,0.292986,68263.0,68256.0,0.146506]
[1729233067851,0.146498,68260.0,68256.0,0.146506]
[1729233068093,0.01097511,68259.0,68255.0,0.293017]
[1729233068316,0.01097511,68258.0,68256.0,0.146506]
[1729233068557,0.01097511,68257.0,68256.0,0.146506]
[1729233068803,0.01097511,68257.0,68254.0,0.31167636]
[1729233069039,0.01097511,68256.0,68255.0,0.146509]
[1729233069281,0.001,68259.0,68256.0,0.146507]
[1729233069533,0.19037164,68260.0,68256.0,0.146507]
[1729233069748,0.003,68257.0,68254.0,0.16516736]
[1729233069969,0.003,68257.0,68256.0,0.146507]
[1729233070179,0.01397578,68257.0,68256.0,0.146507]
[1729233070387,0.01397604,68257.0,68254.0,0.16516736]
[1729233070666,0.003,68257.0,68256.0,0.146507]
[1729233070896,0.01397603,68257.0,68256.0,0.146507]
[1729233071125,0.01097603,68257.0,68256.0,0.146507]
[1729233071355,0.003,68260.0,68257.0,0.146504]
[1729233071585,0.0109762,68259.0,68257.0,0.146504]
[1729233071810,0.003,68260.0,68257.0,0.146504]
[1729233071811,0.0109762,68258.0,68257.0,0.146504]
[1729233072665,0.30724706,68265.0,68257.0,0.293009]
[1729233072666,0.14649,68264.0,68257.0,0.293009]
[1729233072889,0.14649,68264.0,68254.0,0.16516736]
[1729233072890,0.01097596,68263.0,68260.0,0.146498]
[1729233073142,0.01097596,68262.0,68259.0,0.439499]
[1729233073366,0.01097596,68262.0,68258.0,0.16516736]
[1729233073367,0.146496,68262.0,68258.0,0.31166936]
[1729233073584,0.15747387,68261.0,68256.0,0.293014]
[1729233073794,0.15747387,68261.0,68257.0,0.146504]
[1729233073795,0.01097587,68260.0,68257.0,0.146504]
[1729233074003,0.01097587,68260.0,68257.0,0.003]
[1729233074004,0.01097587,68259.0,68257.0,0.003]
[1729233074214,0.01097587,68258.0,68257.0,0.003]
[1729233074434,0.01097587,68258.0,68253.0,0.1]
[1729233074435,0.01097587,68258.0,68256.0,0.146507]
[1729233074643,0.01097587,68257.0,68253.0,0.1]
[1729233074858,0.01097587,68256.0,68251.0,0.001656]
[1729233075075,0.33690244,68261.0,68251.0,0.001656]
[1729233075076,0.146513,68253.0,68251.0,0.001656]
[1729233075289,0.01097587,68252.0,68251.0,0.001656]
[1729233075518,0.15749087,68252.0,68251.0,0.001656]
[1729233075751,0.2069324,68252.0,68251.0,0.001656]
[1729233075968,0.27279656,68252.0,68251.0,0.001656]
[1729233076197,0.31959763,68252.0,68251.0,0.001656]
[1729233076658,0.40738401,68252.0,68251.0,0.001656]
[1729233076879,0.47352427,68252.0,68251.0,0.001656]
[1729233077322,0.49852427,68252.0,68251.0,0.001656]
[1729233077539,0.50452601,68252.0,68251.0,0.001656]
[1729233077755,0.79521349,68252.0,68251.0,0.001656]
[1729233077971,0.47352601,68252.0,68251.0,0.001656]
[1729233078612,0.49852601,68252.0,68251.0,0.001656]
[1729233078827,0.48452601,68252.0,68251.0,0.001656]
[1729233079048,0.48652601,68252.0,68251.0,0.001656]
[1729233079264,0.49852601,68252.0,68251.0,0.001656]
[1729233079494,0.48452601,68252.0,68251.0,0.001656]
[1729233079709,0.62248516,68252.0,68251.0,0.001656]
[1729233079920,0.63848516,68252.0,68251.0,0.001656]
[1729233080134,0.67148516,68252.0,68251.0,0.001656]
[1729233080400,0.80116188,68252.0,68251.0,0.001656]
[1729233080596,0.65548516,68252.0,68251.0,0.001656]
[1729233080832,0.66925993,68252.0,68251.0,0.001656]
[1729233081018,0.65828232,68252.0,68251.0,0.001656]
[1729233081917,0.50932317,68252.0,68251.0,0.001656]
[1729233082154,0.52332317,68252.0,68251.0,0.001656]
[1729233082373,0.48632317,68252.0,68251.0,0.001656]
[1729233082596,0.5998657,68252.0,68251.0,0.001656]
[1729233083530,0.49032317,68252.0,68251.0,0.001656]
[1729233083988,0.50032317,68252.0,68251.0,0.001656]
[1729233084234,0.49532317,68252.0,68251.0,0.001656]
[1729233084454,0.5779292,68252.0,68251.0,0.001656]
[1729233085322,0.48532317,68252.0,68251.0,0.001656]
[1729233085538,0.38916955,68252.0,68251.0,0.001656]
[1729233086043,0.028,68252.0,68251.0,0.001656]
[1729233086205,0.028,68252.0,68251.0,0.228273]
[1729233086867,0.000828,68253.0,68251.0,0.081756]
[1729233087089,0.000828,68253.0,68252.0,0.146515]
[1729233087359,0.000828,68253.0,68252.0,0.39547415]
[1729233088226,0.001828,68253.0,68252.0,0.39547415]
[1729233089107,0.002828,68253.0,68252.0,0.39647415]
[1729233089761,0.001828,68253.0,68252.0,0.39647415]
[1729233089988,0.001828,68253.0,68252.0,0.66967415]
[1729233090207,0.002828,68253.0,68252.0,0.68167415]
[1729233090946,0.002828,68253.0,68252.0,0.67667415]
[1729233090947,0.001828,68253.0,68252.0,0.67667415]
[1729233091175,0.148341,68253.0,68252.0,0.2642]
[1729233091424,0.148341,68253.0,68252.0,0.005]
[1729233091635,0.441368,68253.0,68252.0,0.005]
[1729233091850,0.149341,68253.0,68252.0,0.019]
[1729233092094,0.001828,68253.0,68252.0,0.005]
[1729233092514,0.007828,68253.0,68252.0,0.006]
[1729233092737,0.007828,68253.0,68252.0,0.005]
[1729233092738,0.001828,68253.0,68252.0,0.005]
[1729233092946,0.001828,68253.0,68252.0,0.151515]
[1729233093155,0.008828,68253.0,68252.0,0.31268236]
[1729233093587,0.009828,68253.0,68252.0,0.31668236]
[1729233094071,0.008828,68253.0,68252.0,0.31268236]
[1729233094493,0.003828,68253.0,68251.0,0.001656]
[1729233094710,0.003828,68253.0,68251.0,0.148173]
[1729233094939,0.011828,68253.0,68252.0,0.001]
[1729233095153,0.011828,68253.0,68251.0,0.148173]
[1729233095154,0.011828,68253.0,68251.0,0.001656]
[1729233095575,0.014828,68253.0,68252.0,0.001]
[1729233095789,0.000828,68253.0,68251.0,0.001656]
[1729233096228,0.008828,68253.0,68251.0,0.002656]
[1729233096850,0.009828,68253.0,68251.0,0.002656]
[1729233097494,0.008828,68253.0,68251.0,0.002656]
[1729233097720,0.011828,68253.0,68251.0,0.002656]
[1729233100615,0.146515,68252.0,68251.0,0.002656]
[1729233101546,0.2210347,68252.0,68251.0,0.002656]
[1729233101971,0.2210347,68252.0,68251.0,0.001656]
[1729233102191,0.2300347,68252.0,68251.0,0.002656]
[1729233102413,0.155515,68252.0,68251.0,0.002656]
[1729233102664,0.002,68252.0,68251.0,0.16682336]
[1729233102874,0.002,68252.0,68251.0,0.16782336]
[1729233102875,0.016,68252.0,68251.0,0.16782336]
[1729233103087,0.002,68252.0,68251.0,0.16682336]
[1729233103300,0.147342,68253.0,68251.0,0.16682336]
[1729233103506,0.147342,68253.0,68251.0,0.001656]
[1729233103984,0.000828,68253.0,68252.0,0.146515]
[1729233104202,0.011,68252.0,68251.0,0.16682336]
[1729233104413,0.011,68252.0,68251.0,0.001656]
[1729233104624,0.000828,68253.0,68251.0,0.001656]
[1729233105060,0.160515,68252.0,68251.0,0.001656]
[1729233105303,0.014,68252.0,68251.0,0.001656]
[1729233105521,0.158342,68253.0,68251.0,0.001656]
[1729233105761,0.160515,68252.0,68251.0,0.001656]
[1729233106205,0.146515,68252.0,68251.0,0.001656]
[1729233106879,0.160515,68252.0,68251.0,0.001656]
[1729233107810,0.168515,68252.0,68251.0,0.001656]
[1729233108279,0.008,68252.0,68251.0,0.001656]
[1729233108503,0.154515,68252.0,68251.0,0.001656]
[1729233108734,0.166515,68252.0,68251.0,0.002656]
[1729233109024,0.02,68252.0,68251.0,0.002656]
[1729233109444,0.02,68252.0,68251.0,0.16782336]
[1729233112439,0.02,68252.0,68251.0,0.002656]
[1729233113095,0.02,68252.0,68251.0,0.149173]
[1729233113321,0.02,68252.0,68251.0,0.31434036]
[1729233114000,0.02,68252.0,68251.0,0.16782336]
[1729233114218,0.012,68252.0,68251.0,0.16782336]
[1729233114636,0.005,68252.0,68251.0,0.16682336]
[1729233115070,0.001,68252.0,68251.0,0.32034036]
[1729233115313,0.000828,68253.0,68252.0,0.146515]
[1729233117915,0.000828,68253.0,68252.0,0.147515]
[1729233118134,0.003828,68253.0,68252.0,0.001]
[1729233118342,0.000828,68253.0,68252.0,0.001]
[1729233118561,0.000828,68253.0,68251.0,0.31334036]
[1729233118992,0.002828,68253.0,68252.0,0.156515]
[1729233119247,0.001828,68253.0,68252.0,0.149515]
[1729233119682,0.001828,68253.0,68252.0,0.15244502]
[1729233119683,0.004828,68253.0,68252.0,0.15244502]
[1729233120116,0.003828,68253.0,68252.0,0.14944502]
[1729233120327,0.003828,68253.0,68252.0,0.146515]
[1729233120565,0.003828,68253.0,68252.0,0.147515]
[1729233120814,0.000828,68253.0,68252.0,0.7598715]
[1729233121020,0.21942817,68264.0,68252.0,0.7598715]
[1729233121021,0.21942817,68264.0,68263.0,0.146492]
[1729233121267,0.21942817,68264.0,68263.0,0.72851851]
[1729233121485,0.21942817,68264.0,68263.0,0.73883421]
[1729233121698,0.28516806,68272.0,68271.0,0.146475]
[1729233121699,0.21942817,68272.0,68271.0,0.146475]
[1729233122172,0.21942817,68272.0,68271.0,0.15667027]
[1729233122389,0.22025617,68279.0,68275.0,0.146465]
[1729233122609,0.36671417,68279.0,68277.0,0.16516736]
[1729233122818,0.36671417,68279.0,68274.0,0.146467]
[1729233122819,0.22025617,68279.0,68274.0,0.146467]
[1729233123022,0.000828,68279.0,68277.0,0.01011915]
[1729233123243,0.000828,68279.0,68273.0,0.16516736]
[1729233123474,0.000828,68279.0,68277.0,0.17528651]
[1729233123724,0.000828,68279.0,68277.0,0.16516736]
[1729233123930,0.000828,68279.0,68277.0,0.17528651]
[1729233124146,0.147287,68279.0,68277.0,0.17528651]
[1729233124428,0.010828,68278.0,68277.0,0.17528651]
[1729233124644,0.157288,68278.0,68277.0,0.01011915]
[1729233124856,0.157288,68278.0,68277.0,0.001]
[1729233124857,0.22552704,68278.0,68277.0,0.001]
[1729233125074,0.32024715,68278.0,68277.0,0.001]
[1729233125302,0.48192316,68278.0,68277.0,0.001]
[1729233125520,0.38594859,68278.0,68277.0,0.001]
[1729233125777,0.48193382,68278.0,68277.0,0.001]
[1729233125984,0.569587,68278.0,68277.0,0.001]
[1729233126427,0.48193382,68278.0,68277.0,0.001]
[1729233126640,0.57454872,68278.0,68277.0,0.001]
[1729233126852,0.56154337,68278.0,68277.0,0.001]
[1729233127079,0.67110985,68278.0,68277.0,0.001]
[1729233127298,0.48193382,68278.0,68277.0,0.001]
[1729233127508,0.5965003,68278.0,68277.0,0.001]
[1729233127951,0.024828,68278.0,68277.0,0.147462]
[1729233128437,0.024828,68278.0,68277.0,0.32272727]
[1729233130393,0.024828,68278.0,68277.0,0.32095596]
[1729233130822,0.014828,68278.0,68277.0,0.32095596]
[1729233131255,0.001828,68278.0,68277.0,0.32395596]
[1729233131467,0.001828,68278.0,68277.0,0.17826527]
[1729233131684,0.001828,68278.0,68277.0,0.32972727]
[1729233132133,0.001828,68278.0,68277.0,0.49489463]
[1729233132348,0.002828,68278.0,68277.0,0.33372727]
[1729233132557,0.001828,68278.0,68277.0,0.32572727]
[1729233132978,0.001828,68278.0,68277.0,0.49189463]
[1729233133216,0.292862,68292.0,68277.0,0.49189463]
[1729233133217,0.04378809,68297.0,68282.0,0.005]
[1729233133427,0.21942817,68304.0,68286.0,0.146442]
[1729233133428,0.21942817,68287.0,68286.0,0.146442]
[1729233133636,0.21942817,68287.0,68284.0,0.005]
[1729233133637,0.21942817,68294.0,68293.0,0.146427]
[1729233133846,0.21942817,68304.0,68285.0,0.29289]
[1729233133847,0.51223817,68304.0,68297.0,0.146418]
[1729233134095,0.51223817,68304.0,68293.0,0.292853]
[1729233134096,0.01092611,68303.0,68293.0,0.292853]
[1729233134307,0.146411,68301.0,68291.0,0.0802]
[1729233134574,0.03,68310.0,68309.0,0.146393]
[1729233134786,0.14641,68301.0,68300.0,0.16516736]
[1729233135009,0.292817,68302.0,68296.0,0.16516736]
[1729233135010,0.146418,68298.0,68296.0,0.16516736]
[1729233135218,0.146419,68297.0,68296.0,0.16516736]
[1729233135646,0.014,68301.0,68296.0,0.16516736]
[1729233135856,0.014,68301.0,68287.0,0.21942817]
[1729233135857,0.292823,68301.0,68300.0,0.16516736]
[1729233136074,0.439233,68301.0,68300.0,0.16516736]
[1729233136288,0.14641,68301.0,68300.0,0.16516736]
[1729233136714,0.292801,68306.0,68300.0,0.16516736]
[1729233136927,0.292801,68306.0,68287.0,0.21942817]
[1729233136928,0.1464,68306.0,68305.0,0.16516736]
[1729233137143,0.1573139,68306.0,68305.0,0.16516736]
[1729233137576,0.1464,68306.0,68305.0,0.16516736]
[1729233137806,0.03,68310.0,68305.0,0.16516736]
[1729233138022,0.03,68310.0,68309.0,0.16516736]
[1729233139098,0.044,68310.0,68309.0,0.23846736]
[1729233139599,0.03,68310.0,68309.0,0.38486036]
[1729233139817,0.044,68310.0,68309.0,0.23946736]
[1729233140535,0.63020393,68310.0,68309.0,0.0743]
[1729233140748,0.63020393,68310.0,68285.0,0.38459553]
[1729233140749,0.005,68302.0,68285.0,0.38459553]
[1729233140977,0.146417,68298.0,68297.0,0.21942817]
[1729233141209,0.15985923,68301.0,68293.0,0.16516736]
[1729233141210,0.14895915,68301.0,68293.0,0.16516736]
[1729233141427,0.146425,68294.0,68293.0,0.16516736]
[1729233142611,0.146425,68294.0,68293.0,0.16616736]
[1729233142834,0.014,68301.0,68293.0,0.33133472]
[1729233143078,0.21942817,68308.0,68303.0,0.146406]
[1729233143295,0.21942817,68308.0,68307.0,0.31156436]
[1729233143758,0.03004,68310.0,68307.0,0.16516736]
[1729233143989,0.03004,68310.0,68307.0,0.31156436]
[1729233144246,0.03004,68310.0,68307.0,0.16516736]
[1729233144499,0.03004,68310.0,68309.0,0.146393]
[1729233146214,0.04404,68310.0,68309.0,0.331593]
[1729233146428,0.05504,68310.0,68309.0,0.332593]
[1729233146635,0.04104,68310.0,68309.0,0.332593]
[1729233147177,0.03004,68310.0,68309.0,0.331593]
[1729233147504,0.03104,68310.0,68309.0,0.341593]
[1729233148167,0.03804,68310.0,68309.0,0.331593]
[1729233148397,0.02984576,68310.0,68309.0,0.331593]
[1729233148651,0.03184576,68310.0,68309.0,0.345593]
[1729233149106,0.03267376,68310.0,68309.0,0.345593]
[1729233150447,0.03267376,68310.0,68309.0,0.49955215]
[1729233151358,0.03267376,68310.0,68309.0,0.50955215]
[1729233153396,0.03267376,68310.0,68309.0,0.49955215]
[1729233153614,0.03267376,68310.0,68309.0,0.50955215]
[1729233155891,0.03267376,68310.0,68309.0,0.51966166]
[1729233156962,0.03267376,68310.0,68309.0,0.35570251]
[1729233161307,0.03267376,68310.0,68309.0,0.160393]
[1729233165419,0.03267376,68310.0,68309.0,0.014]
[1729233165839,0.03267376,68310.0,68309.0,0.160393]
[1729233168284,0.03267376,68310.0,68309.0,0.014]
[1729233168492,0.07616518,68310.0,68309.0,0.014]
[1729233168705,0.22255618,68310.0,68309.0,0.014]
[1729233169558,0.0426216,68310.0,68309.0,0.014]
[1729233169781,0.146393,68309.0,68302.0,0.146407]
[1729233170207,0.0416216,68310.0,68297.0,0.292838]
[1729233170208,0.01094784,68308.0,68297.0,0.292838]
[1729233170210,0.01094784,68308.0,68296.0,0.001656]
[1729233170211,0.01094784,68308.0,68307.0,0.21942817]
[1729233170417,0.04467376,68310.0,68309.0,0.146393]
[1729233170418,0.05367376,68310.0,68309.0,0.146393]
[1729233170630,0.04467376,68310.0,68309.0,0.146393]
[1729233171734,0.03067376,68310.0,68309.0,0.226093]
[1729233172635,0.03167376,68310.0,68309.0,0.228093]
[1729233173094,0.03267376,68310.0,68309.0,0.237093]
[1729233173322,0.03267376,68310.0,68309.0,0.238749]
[1729233173765,0.001868,68310.0,68309.0,0.229749]
[1729233174242,0.002868,68310.0,68309.0,0.239749]
[1729233174896,0.01383761,68310.0,68309.0,0.160049]
[1729233175355,0.002868,68310.0,68309.0,0.160049]
[1729233175570,0.01383841,68310.0,68309.0,0.013656]
[1729233176195,0.01383841,68310.0,68309.0,0.160049]
[1729233176399,0.01383924,68310.0,68309.0,0.158049]
[1729233176605,0.01183924,68310.0,68309.0,0.148049]
[1729233176810,0.0128379,68310.0,68309.0,0.150049]
[1729233177014,0.0138379,68310.0,68309.0,0.157049]
[1729233177221,0.0138379,68310.0,68309.0,0.010656]
[1729233177426,0.1602289,68310.0,68309.0,0.010656]
[1729233177869,0.17611488,68310.0,68309.0,0.010656]
[1729233178098,0.20196708,68310.0,68309.0,0.001656]
[1729233178335,0.22383617,68310.0,68309.0,0.001656]
[1729233178570,0.23483617,68310.0,68309.0,0.001656]
[1729233178803,0.22383617,68310.0,68309.0,0.001656]
[1729233179294,0.33988567,68310.0,68309.0,0.002656]
[1729233179536,0.1642289,68310.0,68309.0,0.002656]
[1729233179775,0.1692289,68310.0,68309.0,0.001656]
[1729233180017,0.1582289,68310.0,68309.0,0.001656]
[1729233180259,0.3309013,68310.0,68309.0,0.002656]
[1729233180706,0.3199013,68310.0,68309.0,0.001656]
[1729233180952,0.44112743,68310.0,68309.0,0.002656]
[1729233181221,0.146419,68297.0,68296.0,0.001656]
[1729233181471,0.30634805,68297.0,68296.0,0.001656]
[1729233181728,0.37204153,68297.0,68296.0,0.001656]
[1729233181999,0.63801628,68297.0,68296.0,0.001656]
[1729233182514,0.55042498,68297.0,68296.0,0.001656]
[1729233182775,0.67391411,68297.0,68296.0,0.001656]
[1729233183006,0.83687326,68297.0,68296.0,0.001656]
[1729233183238,0.57842498,68297.0,68296.0,0.001656]
[1729233183452,0.61642498,68297.0,68296.0,0.001656]
[1729233183668,0.021,68283.0,68269.0,0.16516736]
[1729233183892,0.146455,68280.0,68279.0,0.21942817]
[1729233184125,0.146455,68280.0,68269.0,0.16516736]
[1729233184126,0.146473,68272.0,68269.0,0.16516736]
[1729233184362,0.146476,68271.0,68269.0,0.16516736]
[1729233184578,0.146477,68270.0,68269.0,0.16516736]
[1729233184791,0.146473,68272.0,68269.0,0.16516736]
[1729233185002,0.146474,68272.0,68271.0,0.16516736]
[1729233185774,0.005,68281.0,68271.0,0.16516736]
[1729233185775,0.292894,68284.0,68278.0,0.146459]
[1729233185993,0.04377968,68286.0,68272.0,0.292945]
[1729233185994,0.21942817,68279.0,68272.0,0.292945]
[1729233186221,0.146462,68278.0,68271.0,0.146475]
[1729233186425,0.52882361,68282.0,68278.0,0.16516736]
[1729233186627,0.146457,68279.0,68278.0,0.16516736]
[1729233186832,0.30382745,68281.0,68278.0,0.16516736]
[1729233186833,0.146454,68281.0,68278.0,0.16516736]
[1729233187035,0.44186415,68282.0,68278.0,0.16516736]
[1729233187245,0.01,68279.0,68278.0,0.16516736]
[1729233187450,0.156457,68279.0,68278.0,0.16516736]
[1729233187656,0.21942817,68281.0,68275.0,0.16516736]
[1729233187657,0.146464,68276.0,68275.0,0.16516736]
[1729233188794,0.2208947,68276.0,68275.0,0.16516736]
[1729233188998,0.146464,68276.0,68275.0,0.16516736]
[1729233189626,0.585864,68275.0,68267.0,0.16516736]
[1729233189835,0.146479,68269.0,68267.0,0.16516736]
[1729233190065,0.012,68276.0,68268.0,0.146481]
[1729233190309,0.294908,68281.0,68267.0,0.16516736]
[1729233190310,0.146469,68274.0,68269.0,0.146477]
[1729233190566,0.146469,68274.0,68271.0,0.16516736]
[1729233190799,0.14647,68274.0,68271.0,0.16516736]
[1729233191708,0.292932,68275.0,68271.0,0.16516736]
[1729233191936,0.14647,68273.0,68266.0,0.146485]
[1729233192163,0.14895915,68275.0,68264.0,0.0812]
[1729233192407,0.14895915,68275.0,68263.0,0.146491]
[1729233192408,0.146485,68267.0,68263.0,0.146491]
[1729233192669,0.146485,68267.0,68254.0,0.001656]
[1729233192670,0.146509,68255.0,68254.0,0.001656]
[1729233193664,0.29546815,68255.0,68254.0,0.001656]
[1729233194394,0.30546815,68255.0,68254.0,0.001656]
[1729233194624,0.01,68255.0,68254.0,0.001656]
[1729233195815,0.024,68255.0,68254.0,0.001656]
[1729233196962,0.170509,68255.0,68254.0,0.001656]
[1729233197199,0.66352923,68255.0,68254.0,0.001656]
[1729233197433,0.66552923,68255.0,68254.0,0.001656]
[1729233197669,0.67552923,68255.0,68254.0,0.001656]
[1729233197914,0.67552923,68255.0,68251.0,0.001656]
[1729233197915,0.42732834,68252.0,68251.0,0.00094259]
[1729233198154,0.68628749,68252.0,68251.0,0.00094259]
[1729233198400,0.286517,68251.0,68250.0,0.001656]
[1729233198624,0.43547615,68251.0,68250.0,0.001656]
[1729233199062,0.43347615,68251.0,68250.0,0.001656]
[1729233199709,0.43547615,68251.0,68250.0,0.001656]
[1729233199926,0.44947615,68251.0,68250.0,0.001656]
[1729233200805,0.81141934,68251.0,68250.0,0.001656]
[1729233201030,0.59199117,68251.0,68250.0,0.001656]
[1729233202081,0.60599117,68251.0,68250.0,0.001656]
[1729233202935,0.61685541,68251.0,68250.0,0.001656]
[1729233203798,0.33434039,68251.0,68250.0,0.001656]
[1729233204007,0.32847615,68251.0,68250.0,0.001656]
[1729233204215,0.32347615,68251.0,68250.0,0.001656]
[1729233205074,0.30947615,68251.0,68250.0,0.001656]
[1729233205492,0.32347615,68251.0,68250.0,0.001656]
[1729233205698,0.160517,68251.0,68250.0,0.001656]
[1729233206590,0.174517,68251.0,68250.0,0.001656]
[1729233206802,0.160517,68251.0,68250.0,0.001656]
[1729233207021,0.146517,68251.0,68250.0,0.001656]
[1729233207221,0.158517,68251.0,68250.0,0.001656]
[1729233208379,0.18341677,68251.0,68250.0,0.001656]
[1729233208584,0.026,68251.0,68250.0,0.001656]
[1729233209248,0.172517,68251.0,68250.0,0.001656]
[1729233209474,0.18342544,68251.0,68250.0,0.001656]
[1729233209959,0.33238459,68251.0,68250.0,0.001656]
[1729233210169,0.32147615,68251.0,68250.0,0.001656]
[1729233210388,0.3323852,68251.0,68250.0,0.001656]
[1729233210588,0.42492967,68251.0,68250.0,0.001656]
[1729233210739,0.33238605,68251.0,68250.0,0.001656]
[1729233211959,0.32147615,68251.0,68250.0,0.001656]
[1729233212165,0.33239243,68251.0,68250.0,0.001656]
[1729233213829,0.03691628,68251.0,68250.0,0.001656]
[1729233214061,0.18343328,68251.0,68250.0,0.001656]
[1729233214185,0.03691628,68251.0,68250.0,0.148176]
[1729233215529,0.03695628,68251.0,68250.0,0.001656]
[1729233216439,0.03695628,68251.0,68250.0,0.148176]
[1729233217131,0.03695628,68251.0,68250.0,0.409176]
[1729233217613,0.02604,68251.0,68250.0,0.409176]
[1729233217855,0.03698056,68251.0,68250.0,0.409176]
[1729233219012,0.03698056,68251.0,68250.0,0.262656]
[1729233219263,0.18349756,68251.0,68250.0,0.262656]
[1729233219731,0.03698056,68251.0,68250.0,0.262656]
[1729233220194,0.03698056,68251.0,68250.0,0.409176]
[1729233220887,0.02604,68251.0,68250.0,0.409176]
[1729233221141,0.02604,68251.0,68250.0,0.56313515]
[1729233221383,0.01404,68251.0,68250.0,0.56313515]
[1729233221614,0.01704,68251.0,68250.0,0.67313515]
[1729233221854,0.00304,68251.0,68250.0,0.67313515]
[1729233222084,0.000829,68255.0,68254.0,0.005]
[1729233222312,0.000829,68255.0,68254.0,0.90226055]
[1729233222546,0.000829,68255.0,68254.0,0.73721535]
[1729233222766,0.000829,68255.0,68254.0,0.2717]
[1729233222995,0.01178294,68255.0,68254.0,0.2717]
[1729233223232,0.293023,68254.0,68250.0,0.001656]
[1729233223474,0.146517,68251.0,68250.0,0.001656]
[1729233223901,0.15747094,68251.0,68250.0,0.001656]
[1729233224391,0.01095394,68251.0,68250.0,0.001656]
[1729233225371,0.15747094,68251.0,68250.0,0.001656]
[1729233225629,0.146517,68251.0,68250.0,0.001656]
[1729233225858,0.15947272,68251.0,68250.0,0.001656]
[1729233226096,0.16547272,68251.0,68250.0,0.001656]
[1729233226348,0.15747272,68251.0,68250.0,0.001656]
[1729233226806,0.01795572,68251.0,68250.0,0.001656]
[1729233227034,0.01795572,68251.0,68250.0,0.148176]
[1729233227755,0.02095572,68251.0,68250.0,0.148176]
[1729233228462,0.01,68251.0,68250.0,0.148176]
[1729233230625,0.02095827,68251.0,68250.0,0.148176]
[1729233233249,0.02178727,68251.0,68250.0,0.148176]
[1729233233478,0.02179835,68251.0,68250.0,0.148176]
[1729233233716,0.02183835,68251.0,68250.0,0.148176]
[1729233235890,0.010869,68251.0,68250.0,0.68776527]
[1729233236116,0.010869,68251.0,68250.0,0.66983515]
[1729233236392,0.010869,68251.0,68250.0,0.420876]
[1729233237113,0.003869,68251.0,68250.0,0.420876]
[1729233237341,0.000869,68251.0,68250.0,0.420876]
[1729233237807,0.001869,68251.0,68250.0,0.420876]
[1729233238288,0.000869,68251.0,68250.0,0.420876]
[1729233238530,0.001869,68251.0,68250.0,0.423876]
[1729233238769,0.002869,68251.0,68250.0,0.420876]
[1729233239003,0.001869,68251.0,68250.0,0.001656]
[1729233239235,0.15935502,68251.0,68250.0,0.004656]
[1729233239471,0.15835502,68251.0,68250.0,0.001656]
[1729233240017,0.15835502,68251.0,68250.0,0.223576]
[1729233240018,0.01483802,68251.0,68250.0,0.223576]
[1729233240229,0.01483802,68251.0,68250.0,0.077056]
[1729233240230,0.01183802,68251.0,68250.0,0.077056]
[1729233240459,0.15835502,68251.0,68250.0,0.001656]
[1729233240707,0.16535502,68251.0,68250.0,0.001656]
[1729233240942,0.16535706,68251.0,68250.0,0.001656]
[1729233241162,0.16635706,68251.0,68250.0,0.001656]
[1729233241847,0.16535706,68251.0,68250.0,0.001656]
[1729233242059,0.16835706,68251.0,68250.0,0.001656]
[1729233242292,0.16135706,68251.0,68250.0,0.001656]
[1729233242742,0.16935706,68251.0,68250.0,0.001656]
[1729233243004,0.16135706,68251.0,68250.0,0.001656]
[1729233243256,0.02184006,68251.0,68250.0,0.39883374]
[1729233243494,0.010869,68251.0,68250.0,0.67833374]
[1729233243713,0.003869,68251.0,68250.0,0.67833374]
[1729233243937,0.003869,68251.0,68250.0,0.427676]
[1729233244386,0.003869,68251.0,68250.0,0.67833374]
[1729233244837,0.0118416,68251.0,68250.0,0.67833374]
[1729233245057,0.011869,68251.0,68250.0,0.67833374]
[1729233245273,0.0188416,68251.0,68250.0,0.67833374]
[1729233245720,0.0128416,68251.0,68250.0,0.68233374]
[1729233245928,0.0118416,68251.0,68250.0,0.59267907]
[1729233246137,0.001869,68251.0,68250.0,0.59267907]
[1729233246350,0.0138416,68251.0,68250.0,0.59667907]
[1729233246585,0.002869,68251.0,68250.0,0.59667907]
[1729233246864,0.01284295,68251.0,68250.0,0.59667907]
[1729233248027,0.01284295,68251.0,68250.0,0.59267907]
[1729233248280,0.01384295,68251.0,68250.0,0.59667907]
[1729233248689,0.01384295,68251.0,68250.0,0.59267907]
[1729233248690,0.01184295,68251.0,68250.0,0.59267907]
[1729233248921,0.01484295,68251.0,68250.0,0.59267907]